[Event "Late-Titled-Tuesday-Blitz-October-03-2023"]
[Site "Chess.com"]
[Date "2023.10.03"]
[Round "1"]
[White "Hilary46"]
[Black "NCchamp"]
[Result "1-0"]
[WhiteElo "2629"]
[BlackElo "2324"]
[TimeControl "180+1"]
[EndTime "14:07:21 PDT"]
[Termination "Hilary46 won by checkmate"]

1. e4 {[%clk 0:02:51.4]} 1... c6 {[%clk 0:02:56.5]} 2. d4 {[%clk 0:02:48.8]}
2... d5 {[%clk 0:02:57.4]} 3. e5 {[%clk 0:02:48.6]} 3... Bf5 {[%clk 0:02:56.6]}
4. c4 {[%clk 0:02:49.2]} 4... e6 {[%clk 0:02:53.5]} 5. Nc3 {[%clk 0:02:48.8]}
5... Nd7 {[%clk 0:02:50.5]} 6. Nf3 {[%clk 0:02:48.8]} 6... h5 {[%clk 0:02:34.3]}
7. Be3 {[%clk 0:02:46.5]} 7... Ne7 {[%clk 0:02:31.3]} 8. c5 {[%clk 0:02:45]}
8... a5 {[%clk 0:02:26.7]} 9. a3 {[%clk 0:02:42.6]} 9... b6 {[%clk 0:02:24.4]}
10. b4 {[%clk 0:02:42.8]} 10... axb4 {[%clk 0:02:20.9]} 11. axb4 {[%clk
0:02:43.7]} 11... bxc5 {[%clk 0:02:21.8]} 12. bxc5 {[%clk 0:02:40.8]} 12... Ng6
{[%clk 0:02:18]} 13. Be2 {[%clk 0:02:33.7]} 13... Be7 {[%clk 0:02:06.8]} 14. O-O
{[%clk 0:02:32.1]} 14... O-O {[%clk 0:02:04.5]} 15. Ne1 {[%clk 0:02:05.3]} 15...
h4 {[%clk 0:02:00.9]} 16. Nd3 {[%clk 0:02:03.4]} 16... Qc7 {[%clk 0:01:53.1]}
17. Nb4 {[%clk 0:01:55.8]} 17... Rxa1 {[%clk 0:01:45.7]} 18. Qxa1 {[%clk
0:01:56.7]} 18... Rb8 {[%clk 0:01:45.3]} 19. Na6 {[%clk 0:01:56]} 19... Qc8
{[%clk 0:01:44.9]} 20. Nxb8 {[%clk 0:01:55.7]} 20... Qxb8 {[%clk 0:01:45.8]} 21.
Qa6 {[%clk 0:01:49.8]} 21... Qb2 {[%clk 0:01:42.1]} 22. Rc1 {[%clk 0:01:41]}
22... Nb8 {[%clk 0:01:27.1]} 23. Qc8+ {[%clk 0:01:36.4]} 23... Kh7 {[%clk
0:01:23.2]} 24. h3 {[%clk 0:01:30.3]} 24... f6 {[%clk 0:01:14.6]} 25. f4 {[%clk
0:00:57.2]} 25... fxe5 {[%clk 0:00:55.3]} 26. fxe5 {[%clk 0:00:58.1]} 26... Bc2
{[%clk 0:00:41]} 27. Nd1 {[%clk 0:00:42.9]} 27... Bxd1 {[%clk 0:00:41]} 28. Bxd1
{[%clk 0:00:42.5]} 28... Nf8 {[%clk 0:00:36.7]} 29. Bc2+ {[%clk 0:00:39.9]}
29... Kg8 {[%clk 0:00:36.5]} 30. Qc7 {[%clk 0:00:20.7]} 30... Nfd7 {[%clk
0:00:29]} 31. Qa5 {[%clk 0:00:20.8]} 31... g5 {[%clk 0:00:19.8]} 32. Qd2 {[%clk
0:00:20.8]} 32... Qa3 {[%clk 0:00:19.5]} 33. Qd3 {[%clk 0:00:18.6]} 33... Qxd3
{[%clk 0:00:17.4]} 34. Bxd3 {[%clk 0:00:19.5]} 34... Kg7 {[%clk 0:00:15.1]} 35.
Rb1 {[%clk 0:00:19.9]} 35... Bd8 {[%clk 0:00:14.6]} 36. Rb7 {[%clk 0:00:20.3]}
36... Ba5 {[%clk 0:00:14.6]} 37. Bc2 {[%clk 0:00:17.8]} 37... Bc3 {[%clk
0:00:15]} 38. Ba4 {[%clk 0:00:17.2]} 38... Kg6 {[%clk 0:00:14]} 39. Kf2 {[%clk
0:00:16.6]} 39... Kf5 {[%clk 0:00:14.8]} 40. Bc2# {[%clk 0:00:15.3]} 1-0

[Event "Late-Titled-Tuesday-Blitz-October-03-2023"]
[Site "Chess.com"]
[Date "2023.10.03"]
[Round "1"]
[White "Dzidzik2203"]
[Black "ameetghasi100"]
[Result "0-1"]
[WhiteElo "2400"]
[BlackElo "2722"]
[TimeControl "180+1"]
[EndTime "14:07:24 PDT"]
[Termination "ameetghasi100 won by checkmate"]

1. d4 {[%clk 0:03:00.9]} 1... Nf6 {[%clk 0:02:54.5]} 2. c4 {[%clk 0:02:56.6]}
2... g6 {[%clk 0:02:52.9]} 3. Nc3 {[%clk 0:02:53.8]} 3... Bg7 {[%clk 0:02:53.1]}
4. e4 {[%clk 0:02:52.7]} 4... d6 {[%clk 0:02:53.6]} 5. Nf3 {[%clk 0:02:52.6]}
5... O-O {[%clk 0:02:54.1]} 6. Be2 {[%clk 0:02:52.8]} 6... Bg4 {[%clk
0:02:52.5]} 7. Ng1 {[%clk 0:02:47.3]} 7... Bd7 {[%clk 0:02:49]} 8. Be3 {[%clk
0:02:45.9]} 8... e5 {[%clk 0:02:47.5]} 9. Nf3 {[%clk 0:02:41.8]} 9... Nc6 {[%clk
0:02:47.3]} 10. d5 {[%clk 0:02:41.8]} 10... Ne7 {[%clk 0:02:47.4]} 11. Nd2
{[%clk 0:02:37.3]} 11... c6 {[%clk 0:02:45.9]} 12. O-O {[%clk 0:02:35.7]} 12...
a5 {[%clk 0:02:44.5]} 13. a3 {[%clk 0:02:23.9]} 13... Ne8 {[%clk 0:02:42.9]} 14.
b4 {[%clk 0:02:21.6]} 14... f5 {[%clk 0:02:43]} 15. f3 {[%clk 0:02:20.8]} 15...
h5 {[%clk 0:02:42.4]} 16. Qc2 {[%clk 0:02:10.9]} 16... f4 {[%clk 0:02:38.4]} 17.
Bf2 {[%clk 0:02:08.2]} 17... g5 {[%clk 0:02:39.1]} 18. c5 {[%clk 0:02:06.5]}
18... cxd5 {[%clk 0:02:35.6]} 19. exd5 {[%clk 0:02:05.6]} 19... axb4 {[%clk
0:02:35.1]} 20. axb4 {[%clk 0:02:05.3]} 20... Rxa1 {[%clk 0:02:35.7]} 21. Rxa1
{[%clk 0:02:05.1]} 21... g4 {[%clk 0:02:35.8]} 22. Nde4 {[%clk 0:02:01.6]} 22...
Nf5 {[%clk 0:02:23]} 23. Rd1 {[%clk 0:01:19.9]} 23... gxf3 {[%clk 0:01:48.6]}
24. Bxf3 {[%clk 0:01:16]} 24... h4 {[%clk 0:01:48.7]} 25. b5 {[%clk 0:01:07.2]}
25... dxc5 {[%clk 0:01:25.3]} 26. Nxc5 {[%clk 0:01:08.1]} 26... Nd4 {[%clk
0:01:13.8]} 27. Bxd4 {[%clk 0:01:03]} 27... exd4 {[%clk 0:01:14.7]} 28. Ne6
{[%clk 0:00:51.6]} 28... Qb6 {[%clk 0:01:04.7]} 29. Nxg7 {[%clk 0:00:18.6]}
29... dxc3+ {[%clk 0:01:03]} 30. Kh1 {[%clk 0:00:18.6]} 30... Nxg7 {[%clk
0:01:03.2]} 31. Qxc3 {[%clk 0:00:19.2]} 31... Qe3 {[%clk 0:00:41.4]} 32. Qc7
{[%clk 0:00:17.5]} 32... Nf5 {[%clk 0:00:41.1]} 33. Qxd7 {[%clk 0:00:16.2]}
33... Re8 {[%clk 0:00:36.4]} 34. Rg1 {[%clk 0:00:11.5]} 34... Qe5 {[%clk
0:00:26.5]} 35. Qxb7 {[%clk 0:00:07.8]} 35... Qh8 {[%clk 0:00:20]} 36. h3 {[%clk
0:00:04.9]} 36... Qd4 {[%clk 0:00:13.3]} 37. d6 {[%clk 0:00:04.6]} 37... Ng3+
{[%clk 0:00:11.4]} 38. Kh2 {[%clk 0:00:04.9]} 38... Qxg1+ {[%clk 0:00:10.5]} 39.
Kxg1 {[%clk 0:00:05.3]} 39... Re1+ {[%clk 0:00:11]} 40. Kf2 {[%clk 0:00:05.8]}
40... Rf1# {[%clk 0:00:11.6]} 0-1

[Event "Late-Titled-Tuesday-Blitz-October-03-2023"]
[Site "Chess.com"]
[Date "2023.10.03"]
[Round "1"]
[White "Likvidator228"]
[Black "chosenpr"]
[Result "1-0"]
[WhiteElo "2568"]
[BlackElo "2236"]
[TimeControl "180+1"]
[EndTime "14:07:24 PDT"]
[Termination "Likvidator228 won on time"]

1. d4 {[%clk 0:03:00.2]} 1... Nf6 {[%clk 0:02:58.6]} 2. Bf4 {[%clk 0:03:00.7]}
2... e6 {[%clk 0:02:58.6]} 3. e3 {[%clk 0:03:01.3]} 3... c5 {[%clk 0:02:59]} 4.
c3 {[%clk 0:02:59.9]} 4... b6 {[%clk 0:02:59.5]} 5. Nf3 {[%clk 0:02:59.8]} 5...
Bb7 {[%clk 0:03:00.1]} 6. Bd3 {[%clk 0:02:59.8]} 6... cxd4 {[%clk 0:03:00.6]} 7.
cxd4 {[%clk 0:02:57.7]} 7... Be7 {[%clk 0:03:01.2]} 8. Nc3 {[%clk 0:02:58.1]}
8... O-O {[%clk 0:03:01.5]} 9. h3 {[%clk 0:02:58.3]} 9... a6 {[%clk 0:03:01.7]}
10. O-O {[%clk 0:02:58.8]} 10... d6 {[%clk 0:03:02]} 11. Rc1 {[%clk 0:02:59.3]}
11... Nbd7 {[%clk 0:02:58.9]} 12. Re1 {[%clk 0:02:58.9]} 12... Rc8 {[%clk
0:02:57.6]} 13. e4 {[%clk 0:02:58.7]} 13... Re8 {[%clk 0:02:56.2]} 14. Qe2
{[%clk 0:02:55.7]} 14... b5 {[%clk 0:02:55]} 15. a3 {[%clk 0:02:55.6]} 15... Nf8
{[%clk 0:02:34.5]} 16. e5 {[%clk 0:02:50.2]} 16... dxe5 {[%clk 0:02:31]} 17.
dxe5 {[%clk 0:02:50]} 17... Nd5 {[%clk 0:02:31.6]} 18. Nxd5 {[%clk 0:02:49.7]}
18... Bxd5 {[%clk 0:02:28.2]} 19. Bg3 {[%clk 0:02:42.2]} 19... Qb6 {[%clk
0:02:21.7]} 20. Be4 {[%clk 0:02:38.1]} 20... Bc4 {[%clk 0:02:13.9]} 21. Qd2
{[%clk 0:02:36.8]} 21... Red8 {[%clk 0:02:13.1]} 22. Qf4 {[%clk 0:02:35.4]}
22... Ng6 {[%clk 0:02:12.1]} 23. Qg4 {[%clk 0:02:31.2]} 23... a5 {[%clk
0:01:55.6]} 24. h4 {[%clk 0:02:31.1]} 24... Nf8 {[%clk 0:01:52.6]} 25. h5 {[%clk
0:02:30.5]} 25... h6 {[%clk 0:01:52.5]} 26. Bf4 {[%clk 0:02:27.2]} 26... Kh8
{[%clk 0:01:49.6]} 27. Be3 {[%clk 0:02:22.8]} 27... Bc5 {[%clk 0:01:48.2]} 28.
Bxc5 {[%clk 0:02:14.5]} 28... Rxc5 {[%clk 0:01:47.5]} 29. b4 {[%clk 0:02:09.9]}
29... axb4 {[%clk 0:01:46.7]} 30. axb4 {[%clk 0:02:10.8]} 30... Rc7 {[%clk
0:01:45.8]} 31. Qf4 {[%clk 0:02:08.7]} 31... Kg8 {[%clk 0:01:36.9]} 32. g4
{[%clk 0:02:05.1]} 32... Ra7 {[%clk 0:01:30.4]} 33. Rc2 {[%clk 0:01:53.3]} 33...
Bb3 {[%clk 0:01:29.3]} 34. Rb2 {[%clk 0:01:53]} 34... Bd5 {[%clk 0:01:29.4]} 35.
g5 {[%clk 0:01:47.1]} 35... Bxe4 {[%clk 0:01:29.2]} 36. Qxe4 {[%clk 0:01:47.3]}
36... hxg5 {[%clk 0:01:24.4]} 37. Nxg5 {[%clk 0:01:47.1]} 37... Rd4 {[%clk
0:01:24.6]} 38. Qg2 {[%clk 0:01:43.1]} 38... Qb7 {[%clk 0:01:13.6]} 39. Nf3
{[%clk 0:01:42.1]} 39... Rf4 {[%clk 0:01:09.6]} 40. Rb3 {[%clk 0:01:36]} 40...
Qd5 {[%clk 0:01:07]} 41. Rbe3 {[%clk 0:01:30.6]} 41... Rxb4 {[%clk 0:01:05.3]}
42. h6 {[%clk 0:01:26.4]} 42... g6 {[%clk 0:01:04.9]} 43. Qg5 {[%clk 0:01:26.2]}
43... Nh7 {[%clk 0:00:59.8]} 44. Qg3 {[%clk 0:01:25.4]} 44... Rba4 {[%clk
0:00:49]} 45. Kh2 {[%clk 0:01:18.2]} 45... b4 {[%clk 0:00:48.4]} 46. Rc1 {[%clk
0:01:18.1]} 46... Rd7 {[%clk 0:00:44]} 47. Qh4 {[%clk 0:01:15.4]} 47... Rd8
{[%clk 0:00:40.8]} 48. Rc7 {[%clk 0:01:13.1]} 48... Ra3 {[%clk 0:00:37.3]} 49.
Qf4 {[%clk 0:00:56.4]} 49... Rf8 {[%clk 0:00:37.2]} 50. Ng5 {[%clk 0:00:37.1]}
50... Nxg5 {[%clk 0:00:22.9]} 51. Qf6 {[%clk 0:00:37.1]} 1-0

[Event "Late-Titled-Tuesday-Blitz-October-03-2023"]
[Site "Chess.com"]
[Date "2023.10.03"]
[Round "1"]
[White "Mbneu"]
[Black "BigAl"]
[Result "1-0"]
[WhiteElo "2233"]
[BlackElo "2544"]
[TimeControl "180+1"]
[EndTime "14:07:25 PDT"]
[Termination "Mbneu won on time"]

1. d4 {[%clk 0:02:59.8]} 1... Nf6 {[%clk 0:03:00.4]} 2. c4 {[%clk 0:02:59.9]}
2... g6 {[%clk 0:03:00.7]} 3. Nc3 {[%clk 0:02:59.5]} 3... Bg7 {[%clk 0:03:01.4]}
4. e4 {[%clk 0:02:59]} 4... O-O {[%clk 0:03:02.1]} 5. f4 {[%clk 0:02:59.3]} 5...
d6 {[%clk 0:03:02.7]} 6. Nf3 {[%clk 0:02:59.3]} 6... c5 {[%clk 0:03:03]} 7. d5
{[%clk 0:02:59.8]} 7... e6 {[%clk 0:03:03.2]} 8. Be2 {[%clk 0:03:00.1]} 8...
exd5 {[%clk 0:03:03]} 9. cxd5 {[%clk 0:03:00.6]} 9... Nbd7 {[%clk 0:03:03.2]}
10. O-O {[%clk 0:02:59.6]} 10... Re8 {[%clk 0:03:03.2]} 11. Qc2 {[%clk
0:02:59.9]} 11... c4 {[%clk 0:03:02.8]} 12. Bxc4 {[%clk 0:02:48.8]} 12... Nc5
{[%clk 0:02:15]} 13. e5 {[%clk 0:02:44.9]} 13... Bf5 {[%clk 0:02:09]} 14. Qd1
{[%clk 0:02:33.6]} 14... dxe5 {[%clk 0:02:05.9]} 15. Nxe5 {[%clk 0:02:21.9]}
15... Rc8 {[%clk 0:01:55]} 16. d6 {[%clk 0:02:15.5]} 16... Be6 {[%clk
0:01:47.9]} 17. Bb5 {[%clk 0:01:58.4]} 17... Nfd7 {[%clk 0:01:33.4]} 18. Be3
{[%clk 0:01:31.5]} 18... a6 {[%clk 0:01:32.6]} 19. Bxd7 {[%clk 0:01:28.5]} 19...
Nxd7 {[%clk 0:01:31.5]} 20. Bd4 {[%clk 0:01:26.1]} 20... Nc5 {[%clk 0:01:10.5]}
21. b4 {[%clk 0:01:06.8]} 21... Nd7 {[%clk 0:01:07.5]} 22. Ne4 {[%clk 0:00:55]}
22... Nf6 {[%clk 0:00:55]} 23. Nxf6+ {[%clk 0:00:46.2]} 23... Bxf6 {[%clk
0:00:54.7]} 24. d7 {[%clk 0:00:46.4]} 24... Bxd7 {[%clk 0:00:49.4]} 25. Nxd7
{[%clk 0:00:46.1]} 25... Be7 {[%clk 0:00:36]} 26. Bb6 {[%clk 0:00:38]} 26... Rc7
{[%clk 0:00:33.3]} 27. Bxc7 {[%clk 0:00:36.4]} 27... Qxc7 {[%clk 0:00:34.2]} 28.
Ne5 {[%clk 0:00:36.3]} 28... Bxb4 {[%clk 0:00:30.1]} 29. Rc1 {[%clk 0:00:32.8]}
29... Qb6+ {[%clk 0:00:29.9]} 30. Kh1 {[%clk 0:00:32.9]} 30... Rf8 {[%clk
0:00:29.9]} 31. Qd5 {[%clk 0:00:30.9]} 31... Qe3 {[%clk 0:00:23.2]} 32. Rc4
{[%clk 0:00:22.7]} 32... a5 {[%clk 0:00:13.2]} 33. Qd3 {[%clk 0:00:19.3]} 33...
Qa7 {[%clk 0:00:11.5]} 34. Rfc1 {[%clk 0:00:19.2]} 34... Qa8 {[%clk 0:00:07.7]}
35. Qd4 {[%clk 0:00:18.7]} 35... Rd8 {[%clk 0:00:07.3]} 36. Qf2 {[%clk
0:00:17.2]} 36... Bf8 {[%clk 0:00:05.4]} 37. Qc2 {[%clk 0:00:16.6]} 37... Qa7
{[%clk 0:00:03.3]} 38. h3 {[%clk 0:00:16.1]} 1-0

[Event "Late-Titled-Tuesday-Blitz-October-03-2023"]
[Site "Chess.com"]
[Date "2023.10.03"]
[Round "1"]
[White "nihalsarin"]
[Black "Giorno"]
[Result "1-0"]
[WhiteElo "3065"]
[BlackElo "2507"]
[TimeControl "180+1"]
[EndTime "14:07:29 PDT"]
[Termination "nihalsarin won by resignation"]

1. a3 {[%clk 0:02:51.5]} 1... e5 {[%clk 0:02:56.2]} 2. c4 {[%clk 0:02:49.2]}
2... Nf6 {[%clk 0:02:53]} 3. Nc3 {[%clk 0:02:35.7]} 3... Nc6 {[%clk 0:02:51.3]}
4. e3 {[%clk 0:02:34.6]} 4... Be7 {[%clk 0:02:45]} 5. g4 {[%clk 0:02:33.1]} 5...
O-O {[%clk 0:02:43]} 6. g5 {[%clk 0:02:21.5]} 6... Ne8 {[%clk 0:02:42.3]} 7. h4
{[%clk 0:02:22.3]} 7... d6 {[%clk 0:02:37.4]} 8. Bd3 {[%clk 0:02:21.7]} 8... f5
{[%clk 0:02:36.5]} 9. gxf6 {[%clk 0:02:21.6]} 9... Nxf6 {[%clk 0:02:36.7]} 10.
Nh3 {[%clk 0:02:21.4]} 10... Bg4 {[%clk 0:02:33.4]} 11. Qc2 {[%clk 0:02:21]}
11... Qd7 {[%clk 0:02:29.6]} 12. Ng5 {[%clk 0:02:20.7]} 12... h6 {[%clk
0:02:17.6]} 13. Nd5 {[%clk 0:02:09.9]} 13... hxg5 {[%clk 0:01:37.2]} 14. hxg5
{[%clk 0:02:05.6]} 14... Nh5 {[%clk 0:01:29.7]} 15. Bh7+ {[%clk 0:02:01.8]}
15... Kh8 {[%clk 0:01:27.6]} 16. Bg6 {[%clk 0:02:01]} 16... Bxg5 {[%clk
0:00:58.5]} 17. Bxh5 {[%clk 0:01:59.6]} 17... Bxh5 {[%clk 0:00:52.5]} 18. Rxh5+
{[%clk 0:02:00.5]} 18... Bh6 {[%clk 0:00:53.4]} 19. Qg6 {[%clk 0:02:00.4]} 19...
Qf7 {[%clk 0:00:49.8]} 20. Qxf7 {[%clk 0:02:00.7]} 20... Rxf7 {[%clk 0:00:49.7]}
21. d3 {[%clk 0:01:58.7]} 21... Kg8 {[%clk 0:00:49.3]} 22. Bd2 {[%clk 0:01:58]}
22... Raf8 {[%clk 0:00:47.2]} 23. Rh2 {[%clk 0:01:58.7]} 23... Nd8 {[%clk
0:00:44.1]} 24. Ke2 {[%clk 0:01:54.4]} 24... c6 {[%clk 0:00:44.5]} 25. Nc3
{[%clk 0:01:54.4]} 25... Ne6 {[%clk 0:00:45.1]} 26. Rg1 {[%clk 0:01:54.6]} 26...
Kh7 {[%clk 0:00:38.9]} 27. Rgg2 {[%clk 0:01:52.8]} 27... Rd8 {[%clk 0:00:30.2]}
28. Rh5 {[%clk 0:01:51.1]} 28... Rf6 {[%clk 0:00:26.8]} 29. Ne4 {[%clk
0:01:50.7]} 29... Rg6 {[%clk 0:00:27.1]} 30. Rgh2 {[%clk 0:01:46.6]} 30... d5
{[%clk 0:00:27.5]} 31. cxd5 {[%clk 0:01:47.4]} 31... cxd5 {[%clk 0:00:28.1]} 32.
Ng3 {[%clk 0:01:47.9]} 32... d4 {[%clk 0:00:26]} 33. Rxe5 {[%clk 0:01:45.4]}
33... dxe3 {[%clk 0:00:25.4]} 34. Bxe3 {[%clk 0:01:46.1]} 34... Nd4+ {[%clk
0:00:24.8]} 35. Bxd4 {[%clk 0:01:46.2]} 35... Rxd4 {[%clk 0:00:25.5]} 36. Ne4
{[%clk 0:01:46.5]} 36... Rd8 {[%clk 0:00:22.9]} 37. Re7 {[%clk 0:01:42.8]} 37...
Rb6 {[%clk 0:00:22.8]} 38. b4 {[%clk 0:01:43.5]} 38... Kg8 {[%clk 0:00:22.2]}
39. Rh5 {[%clk 0:01:38.3]} 39... Ra6 {[%clk 0:00:21.5]} 40. Ra5 {[%clk
0:01:33.1]} 40... Rxa5 {[%clk 0:00:16.9]} 41. bxa5 {[%clk 0:01:34]} 41... Rb8
{[%clk 0:00:17.8]} 42. d4 {[%clk 0:01:33.3]} 42... Bf4 {[%clk 0:00:16.1]} 43. d5
{[%clk 0:01:26.6]} 43... Bc1 {[%clk 0:00:15.4]} 44. a4 {[%clk 0:01:25.2]} 44...
Ba3 {[%clk 0:00:15.6]} 45. Rd7 {[%clk 0:01:24.9]} 45... Bb4 {[%clk 0:00:13.6]}
46. a6 {[%clk 0:01:25.6]} 46... bxa6 {[%clk 0:00:13.9]} 47. Rxa7 {[%clk
0:01:26.5]} 47... a5 {[%clk 0:00:13.8]} 48. Kd3 {[%clk 0:01:22.9]} 48... Rd8
{[%clk 0:00:13.4]} 49. Kd4 {[%clk 0:01:22.9]} 49... Rc8 {[%clk 0:00:06.6]} 50.
d6 {[%clk 0:01:21.6]} 50... Rc1 {[%clk 0:00:06.3]} 51. Kd5 {[%clk 0:01:15.9]}
51... Kf8 {[%clk 0:00:05.2]} 52. Ke6 {[%clk 0:01:12.5]} 52... Rc8 {[%clk
0:00:04.6]} 53. d7 {[%clk 0:01:05.1]} 53... Rd8 {[%clk 0:00:03.7]} 54. Rc7
{[%clk 0:01:04.9]} 54... Be7 {[%clk 0:00:03.1]} 55. Rc8 {[%clk 0:01:05.2]} 55...
Bh4 {[%clk 0:00:03.4]} 56. f4 {[%clk 0:01:04.9]} 56... g6 {[%clk 0:00:03.2]} 57.
Ng5 {[%clk 0:01:04.9]} 1-0

[Event "Late-Titled-Tuesday-Blitz-October-03-2023"]
[Site "Chess.com"]
[Date "2023.10.03"]
[Round "1"]
[White "Zhigalko_Sergei"]
[Black "Mikhal867"]
[Result "1-0"]
[WhiteElo "2930"]
[BlackElo "2477"]
[TimeControl "180+1"]
[EndTime "14:07:30 PDT"]
[Termination "Zhigalko_Sergei won on time"]

1. e4 {[%clk 0:03:00.9]} 1... g6 {[%clk 0:02:59.3]} 2. d4 {[%clk 0:03:01]} 2...
Bg7 {[%clk 0:02:59.1]} 3. Nc3 {[%clk 0:03:01.8]} 3... d6 {[%clk 0:02:58.9]} 4.
Nf3 {[%clk 0:03:02.5]} 4... a6 {[%clk 0:02:58]} 5. Be3 {[%clk 0:03:02.9]} 5...
Nd7 {[%clk 0:02:56.8]} 6. Bc4 {[%clk 0:02:56.8]} 6... e6 {[%clk 0:02:54.6]} 7.
O-O {[%clk 0:02:56.3]} 7... Ne7 {[%clk 0:02:54.3]} 8. a4 {[%clk 0:02:55.4]} 8...
b6 {[%clk 0:02:54.2]} 9. Qd2 {[%clk 0:02:55.6]} 9... h6 {[%clk 0:02:53.5]} 10.
Rfe1 {[%clk 0:02:51.2]} 10... Bb7 {[%clk 0:02:52.8]} 11. h3 {[%clk 0:02:49.2]}
11... g5 {[%clk 0:02:45.1]} 12. Bd3 {[%clk 0:02:41.7]} 12... Ng6 {[%clk
0:02:33.5]} 13. Ne2 {[%clk 0:02:40.6]} 13... Nf6 {[%clk 0:02:17.9]} 14. Ng3
{[%clk 0:02:40.6]} 14... Qd7 {[%clk 0:02:08.8]} 15. b3 {[%clk 0:02:18.5]} 15...
O-O-O {[%clk 0:02:00.5]} 16. Qe2 {[%clk 0:02:13.3]} 16... a5 {[%clk 0:01:55]}
17. b4 {[%clk 0:02:12]} 17... Nf4 {[%clk 0:01:49.2]} 18. Bxf4 {[%clk 0:02:07.8]}
18... gxf4 {[%clk 0:01:48.8]} 19. Nf1 {[%clk 0:02:06.6]} 19... axb4 {[%clk
0:01:43.9]} 20. a5 {[%clk 0:02:07.5]} 20... Qc6 {[%clk 0:01:27.9]} 21. N1d2
{[%clk 0:01:55.6]} 21... Nd7 {[%clk 0:01:09.2]} 22. Reb1 {[%clk 0:01:32.1]}
22... bxa5 {[%clk 0:01:02.5]} 23. Nb3 {[%clk 0:01:24]} 23... Qc3 {[%clk
0:00:49.6]} 24. Nxa5 {[%clk 0:01:21.4]} 24... Nb6 {[%clk 0:00:38.5]} 25. Nxb7
{[%clk 0:01:10]} 25... Kxb7 {[%clk 0:00:38.5]} 26. Ba6+ {[%clk 0:01:10.3]} 26...
Kb8 {[%clk 0:00:38.8]} 27. Ra2 {[%clk 0:00:58.2]} 27... Bxd4 {[%clk 0:00:36.9]}
28. Nxd4 {[%clk 0:00:19.4]} 28... Qxd4 {[%clk 0:00:36.3]} 29. Rba1 {[%clk
0:00:20.1]} 29... Rhg8 {[%clk 0:00:31.2]} 30. Qf3 {[%clk 0:00:19]} 30... Qc3
{[%clk 0:00:23.4]} 31. Qxf4 {[%clk 0:00:16.3]} 31... Qxh3 {[%clk 0:00:22.5]} 32.
Bf1 {[%clk 0:00:15.9]} 32... Qg4 {[%clk 0:00:18.9]} 33. Qe3 {[%clk 0:00:08.1]}
33... Qg5 {[%clk 0:00:17.7]} 34. Qd3 {[%clk 0:00:07.3]} 34... Qc5 {[%clk
0:00:15]} 35. Ra7 {[%clk 0:00:07.3]} 35... Kc8 {[%clk 0:00:09.9]} 36. Qf3 {[%clk
0:00:04.5]} 36... f5 {[%clk 0:00:06.4]} 37. exf5 {[%clk 0:00:04.1]} 37... Qxf5
{[%clk 0:00:06.5]} 38. Qc6 {[%clk 0:00:03.4]} 1-0

[Event "Late-Titled-Tuesday-Blitz-October-03-2023"]
[Site "Chess.com"]
[Date "2023.10.03"]
[Round "1"]
[White "wanyaland"]
[Black "German_Bazeev"]
[Result "0-1"]
[WhiteElo "2430"]
[BlackElo "2801"]
[TimeControl "180+1"]
[EndTime "14:07:37 PDT"]
[Termination "German_Bazeev won on time"]

1. d4 {[%clk 0:02:56.8]} 1... Nf6 {[%clk 0:02:59.9]} 2. c4 {[%clk 0:02:56.5]}
2... e6 {[%clk 0:02:59.9]} 3. g3 {[%clk 0:02:56.1]} 3... d5 {[%clk 0:02:59.7]}
4. Bg2 {[%clk 0:02:56]} 4... Bb4+ {[%clk 0:02:59.9]} 5. Bd2 {[%clk 0:02:55.4]}
5... Be7 {[%clk 0:02:59.7]} 6. Nf3 {[%clk 0:02:54.6]} 6... O-O {[%clk
0:02:59.8]} 7. O-O {[%clk 0:02:53.4]} 7... c6 {[%clk 0:02:59.7]} 8. Qc2 {[%clk
0:02:52.8]} 8... Nbd7 {[%clk 0:02:59.6]} 9. Nc3 {[%clk 0:02:50]} 9... dxc4
{[%clk 0:02:57.7]} 10. a4 {[%clk 0:02:49.5]} 10... a5 {[%clk 0:02:56.5]} 11. e4
{[%clk 0:02:47.1]} 11... b6 {[%clk 0:02:50.8]} 12. h3 {[%clk 0:02:45.9]} 12...
Ba6 {[%clk 0:02:48.8]} 13. Rfd1 {[%clk 0:02:46]} 13... b5 {[%clk 0:02:46]} 14.
e5 {[%clk 0:02:33.4]} 14... Nd5 {[%clk 0:02:42.5]} 15. Ne4 {[%clk 0:02:27.2]}
15... b4 {[%clk 0:02:17.4]} 16. Neg5 {[%clk 0:02:26.4]} 16... g6 {[%clk
0:02:17.2]} 17. Qe4 {[%clk 0:02:25.8]} 17... Kg7 {[%clk 0:01:53.8]} 18. Qg4
{[%clk 0:02:20.3]} 18... h5 {[%clk 0:01:49.6]} 19. Qe4 {[%clk 0:02:10.3]} 19...
c3 {[%clk 0:01:34.7]} 20. bxc3 {[%clk 0:02:09.8]} 20... bxc3 {[%clk 0:01:35.6]}
21. Bc1 {[%clk 0:02:08.8]} 21... Rb8 {[%clk 0:01:28.4]} 22. g4 {[%clk
0:01:56.7]} 22... Rh8 {[%clk 0:01:26.1]} 23. h4 {[%clk 0:01:46.5]} 23... Rb4
{[%clk 0:01:20.5]} 24. Bh3 {[%clk 0:01:43]} 24... Nf8 {[%clk 0:01:13.6]} 25. Kh2
{[%clk 0:01:30.5]} 25... c5 {[%clk 0:01:07.9]} 26. Rg1 {[%clk 0:01:26.1]} 26...
cxd4 {[%clk 0:01:01.8]} 27. Nxd4 {[%clk 0:01:24.7]} 27... Bc5 {[%clk 0:00:55.2]}
28. Nc6 {[%clk 0:01:15.1]} 28... Rxe4 {[%clk 0:00:44.9]} 29. Nxd8 {[%clk
0:01:14.5]} 29... Re2 {[%clk 0:00:44.9]} 30. Ndxf7 {[%clk 0:01:10.7]} 30...
Rxf2+ {[%clk 0:00:44.6]} 31. Rg2 {[%clk 0:01:06.2]} 31... Rxf7 {[%clk
0:00:45.5]} 32. Nxf7 {[%clk 0:00:57.5]} 32... Kxf7 {[%clk 0:00:46.4]} 33. Bg5
{[%clk 0:00:50.9]} 33... Bd3 {[%clk 0:00:39.9]} 34. Rd1 {[%clk 0:00:46.9]} 34...
Bc4 {[%clk 0:00:28.4]} 35. Rb1 {[%clk 0:00:35.7]} 35... Bb4 {[%clk 0:00:27.9]}
36. Rf2+ {[%clk 0:00:34]} 36... Ke8 {[%clk 0:00:28.1]} 37. gxh5 {[%clk
0:00:23.5]} 37... Rxh5 {[%clk 0:00:29]} 38. Bg4 {[%clk 0:00:23.6]} 38... Rh7
{[%clk 0:00:29.2]} 39. Bd1 {[%clk 0:00:20.1]} 39... Bd3 {[%clk 0:00:27.8]} 40.
Bc2 {[%clk 0:00:18]} 40... Bf5 {[%clk 0:00:24.6]} 41. Rd1 {[%clk 0:00:16.1]}
41... Nd7 {[%clk 0:00:23.9]} 42. Kg3 {[%clk 0:00:14.7]} 42... Nc5 {[%clk
0:00:20.9]} 0-1